bitfinex/quotes_BTCUSD_20230114
["timestamp","ask_amount","ask_price","bid_price","bid_amount"]
[1673692503690,0.22864332,20338.0,20336.0,0.006]
[1673692503943,0.42360699,20339.0,20336.0,0.47720169]
[1673692504185,0.54960699,20339.0,20338.0,0.06437]
[1673692504445,0.42360699,20339.0,20338.0,0.771558]
[1673692504707,0.43360699,20339.0,20338.0,0.771558]
[1673692504958,0.42360699,20339.0,20338.0,1.24875969]
[1673692505209,0.48860699,20339.0,20338.0,1.54875969]
[1673692505462,0.42360699,20339.0,20338.0,1.54875969]
[1673692505719,0.42360699,20339.0,20338.0,1.64875969]
[1673692506735,0.42760699,20339.0,20338.0,1.78475969]
[1673692507473,0.42360699,20339.0,20338.0,1.34875969]
[1673692507715,0.42360699,20339.0,20338.0,1.48475969]
[1673692507716,0.42760699,20339.0,20338.0,1.48475969]
[1673692507961,0.42360699,20339.0,20338.0,1.34875969]
[1673692508233,0.42360699,20339.0,20338.0,1.48475969]
[1673692508474,0.42760699,20339.0,20338.0,1.48475969]
[1673692508983,0.32760699,20339.0,20338.0,1.48475969]
[1673692509234,0.32360699,20339.0,20338.0,1.34875969]
[1673692509487,0.32360699,20339.0,20338.0,5.37923489]
[1673692509746,0.32760699,20339.0,20338.0,1.51523489]
[1673692509991,0.32760699,20339.0,20338.0,0.9020332]
[1673692510238,0.33160699,20339.0,20338.0,0.907558]
[1673692510484,0.32760699,20339.0,20338.0,0.871558]
[1673692510730,0.33060699,20339.0,20338.0,0.978558]
[1673692510978,0.33060699,20339.0,20338.0,1.45575969]
[1673692511230,0.31898824,20339.0,20338.0,1.45575969]
[1673692511473,0.31898824,20339.0,20338.0,1.75575969]
[1673692512010,0.31898824,20339.0,20338.0,1.45575969]
[1673692512263,0.31898824,20339.0,20338.0,1.46686005]
[1673692512513,0.31898824,20339.0,20338.0,3.46337794]
[1673692512761,0.31898824,20339.0,20338.0,1.46736984]
[1673692513007,0.31898824,20339.0,20338.0,0.97331685]
[1673692513246,0.31898824,20339.0,20338.0,0.878558]
[1673692513509,0.31898824,20339.0,20338.0,1.878558]
[1673692513760,0.31898824,20339.0,20338.0,1.978558]
[1673692514016,0.31898824,20339.0,20338.0,2.45575969]
[1673692514519,0.31898824,20339.0,20338.0,2.75575969]
[1673692516807,0.02246085,20342.0,20339.0,0.06200618]
[1673692517082,0.02246085,20342.0,20340.0,2.27499069]
[1673692517333,0.02246085,20342.0,20341.0,1.09866169]
[1673692517576,0.02246085,20342.0,20341.0,1.59027869]
[1673692517857,0.02246085,20342.0,20341.0,1.49027869]
[1673692518125,0.02246085,20342.0,20341.0,2.19027869]
[1673692518356,0.02246085,20342.0,20341.0,2.32096523]
[1673692518609,0.02246085,20342.0,20341.0,2.19027869]
[1673692519112,0.02246085,20342.0,20341.0,2.30402853]
[1673692519365,0.02246085,20342.0,20341.0,1.33520984]
[1673692519608,0.02246085,20342.0,20341.0,1.34220984]
[1673692522185,0.26291781,20342.0,20341.0,1.007]
[1673692522427,0.51405385,20342.0,20341.0,0.007]
[1673692522679,0.61405385,20342.0,20341.0,0.007]
[1673692523170,0.51405385,20342.0,20341.0,0.007]
[1673692523419,0.73459976,20342.0,20341.0,0.007]
[1673692523662,0.61405385,20342.0,20341.0,0.007]
[1673692524190,0.6309268,20342.0,20341.0,0.007]
[1673692524679,0.1,20341.0,20336.0,0.39583458]
[1673692524926,2.04030049,20340.0,20337.0,0.00019]
[1673692525173,0.1448,20339.0,20337.0,0.00019]
[1673692525420,0.98338,20338.0,20337.0,0.00019]
[1673692525665,1.19850484,20338.0,20337.0,0.00019]
[1673692525952,1.09850484,20338.0,20337.0,0.00019]
[1673692526208,1.09850484,20338.0,20337.0,0.06456]
[1673692526453,0.611654,20340.0,20338.0,0.12549909]
[1673692526454,0.12,20340.0,20338.0,0.12549909]
[1673692526694,0.12,20340.0,20338.0,0.31704048]
[1673692526940,0.12,20340.0,20338.0,0.12631453]
[1673692526941,0.2182708,20340.0,20338.0,0.12631453]
[1673692527187,0.2182708,20340.0,20337.0,0.012]
[1673692527445,0.2182708,20340.0,20337.0,0.14088259]
[1673692527685,0.51405585,20342.0,20338.0,0.99084164]
[1673692527686,0.02246085,20342.0,20338.0,0.99084164]
[1673692527934,0.02246085,20342.0,20339.0,2.17271764]
[1673692528185,0.02246085,20342.0,20340.0,0.99080564]
[1673692528431,0.02246085,20342.0,20341.0,2.08188069]
[1673692528926,0.02246085,20342.0,20341.0,1.78188069]
[1673692529437,0.03346085,20342.0,20341.0,2.22638069]
[1673692529688,0.02246085,20342.0,20341.0,5.22638069]
[1673692529926,0.03346085,20342.0,20341.0,5.28838069]
[1673692530939,0.03346085,20342.0,20341.0,5.27888069]
[1673692531183,0.02246085,20342.0,20341.0,5.21688069]
[1673692531430,0.03346085,20342.0,20341.0,5.27888069]
[1673692531699,0.00705805,20349.0,20344.0,0.05990302]
[1673692531940,0.00705805,20349.0,20346.0,0.06301025]
[1673692532188,0.00705805,20349.0,20348.0,0.135]
[1673692532432,0.00705805,20349.0,20348.0,1.52566864]
[1673692532676,0.00705805,20349.0,20348.0,7.52566864]
[1673692532923,0.00705805,20349.0,20348.0,7.33494269]
[1673692533168,0.01805805,20349.0,20348.0,7.33494269]
[1673692533421,0.01792485,20349.0,20348.0,7.33494269]
[1673692533957,0.00692485,20349.0,20348.0,7.33494269]
[1673692534202,0.7906175,20351.0,20348.0,8.41266864]
[1673692534451,0.7906175,20351.0,20350.0,0.2706]
[1673692534770,0.00739642,20356.0,20351.0,0.79061]
[1673692535008,0.00765534,20362.0,20351.0,0.79061]
[1673692535009,1.26362787,20366.0,20355.0,0.47720169]
[1673692535303,0.10128708,20366.0,20359.0,0.491171]
[1673692535567,0.490997,20367.0,20360.0,0.41182103]
[1673692535831,0.81537861,20367.0,20361.0,0.19072595]
[1673692536085,0.1348,20364.0,20362.0,0.19072595]
[1673692536334,0.625286,20363.0,20360.0,0.13386677]
[1673692536588,0.491086,20363.0,20362.0,0.12885009]
[1673692536877,0.1348,20364.0,20362.0,0.11205402]
[1673692537116,0.13437679,20366.0,20362.0,0.19072595]
[1673692537117,0.1353,20366.0,20362.0,0.19072595]
[1673692537361,0.1353,20366.0,20363.0,0.19072595]
[1673692537601,0.1348,20368.0,20363.0,0.19072595]
[1673692537855,0.60159448,20369.0,20364.0,0.19072595]
[1673692538098,0.73689448,20369.0,20365.0,0.19072595]
[1673692538334,0.73689448,20369.0,20366.0,0.19072595]
[1673692538588,0.626254,20369.0,20366.0,0.19072595]
[1673692538830,0.626254,20369.0,20367.0,0.13226088]
[1673692539073,0.1353,20368.0,20363.0,0.082]
[1673692539317,0.1353,20368.0,20365.0,0.006]
[1673692539318,0.25695281,20368.0,20365.0,0.006]
[1673692539586,0.056,20369.0,20367.0,0.09533269]
[1673692540074,0.22971444,20370.0,20367.0,0.28605864]
[1673692540318,0.056,20369.0,20367.0,0.19072595]
[1673692540575,0.056,20369.0,20367.0,0.1213756]
[1673692540822,0.157,20369.0,20367.0,0.1293756]
[1673692541066,0.0959068,20370.0,20367.0,0.1213756]
[1673692541307,0.1969068,20370.0,20367.0,0.32010155]
[1673692541560,0.101,20370.0,20367.0,0.19072595]
[1673692541816,0.002,20369.0,20367.0,0.019]
[1673692542067,0.10025595,20372.0,20366.0,0.491013]
[1673692542312,0.22190876,20372.0,20368.0,0.1]
[1673692542554,0.1366,20373.0,20368.0,0.68169095]
[1673692542805,0.1353,20369.0,20368.0,0.19072595]
[1673692543061,0.25695281,20369.0,20367.0,0.082]
[1673692543308,0.1353,20368.0,20363.0,0.07900004]
[1673692543569,0.12165281,20367.0,20360.0,4.0]
[1673692543817,0.1353,20362.0,20359.0,0.09272394]
[1673692544070,0.12165281,20361.0,20355.0,0.491258]
[1673692544316,0.1353,20362.0,20360.0,0.12548508]
[1673692544317,0.12165281,20362.0,20360.0,0.12548508]
[1673692544582,0.625851,20365.0,20360.0,0.12548508]
[1673692544802,0.10348111,20364.0,20360.0,0.12548508]
[1673692545345,0.12966723,20363.0,20360.0,0.12548508]
[1673692545594,0.12746392,20362.0,20360.0,0.12548508]
[1673692545839,0.12746392,20362.0,20359.0,0.10384633]
[1673692545840,0.60958192,20362.0,20359.0,0.10384633]
[1673692546084,0.73123473,20362.0,20359.0,0.10384633]
[1673692546327,0.60958192,20362.0,20359.0,0.10384633]
[1673692546574,0.13173056,20361.0,20359.0,0.10384633]
[1673692547119,0.2701,20360.0,20357.0,0.00019]
[1673692547357,1.45530081,20361.0,20357.0,0.00019]
[1673692547358,1.38244749,20361.0,20357.0,0.00019]
[1673692547603,0.09388365,20361.0,20357.0,0.12821181]
[1673692547857,0.09588365,20361.0,20359.0,0.019]
[1673692548108,0.1353,20360.0,20359.0,0.019]
[1673692548363,0.72213385,20361.0,20359.0,0.019]
[1673692548620,0.72013385,20361.0,20359.0,0.10074258]
[1673692548866,0.009,20360.0,20359.0,0.10074258]
[1673692549117,0.58483785,20361.0,20355.0,1.613677]
[1673692549366,0.101,20360.0,20359.0,0.008]
[1673692549607,0.1353,20362.0,20358.0,0.11197206]
[1673692549856,0.201,20361.0,20359.0,0.008]
[1673692550117,0.219105,20361.0,20359.0,0.008]
[1673692550360,0.10824751,20360.0,20359.0,0.008]
[1673692550602,0.10824751,20360.0,20358.0,0.11197206]
[1673692550852,0.10824751,20360.0,20358.0,0.11797206]
[1673692551585,0.12157833,20362.0,20358.0,0.11197206]
[1673692551837,0.101,20361.0,20359.0,0.008]
[1673692552093,0.12689097,20361.0,20358.0,0.30269801]
[1673692552343,0.10019,20362.0,20358.0,0.30269801]
[1673692552344,0.056,20360.0,20359.0,0.49072595]
[1673692552589,0.00019,20362.0,20359.0,1.78200964]
[1673692552831,0.05919,20362.0,20360.0,0.94674824]
[1673692553083,0.05919,20362.0,20361.0,0.80008069]
[1673692553084,0.00019,20362.0,20361.0,0.80008069]
[1673692553334,0.00013,20362.0,20361.0,1.88235069]
[1673692553584,0.00840618,20367.0,20361.0,1.88235069]
[1673692553828,0.00840618,20367.0,20362.0,0.41154795]
[1673692553829,0.11574134,20367.0,20362.0,0.41154795]
[1673692554082,0.00840618,20367.0,20363.0,0.78181095]
[1673692554324,0.00840618,20367.0,20364.0,0.51363995]
[1673692554601,0.00840618,20367.0,20364.0,0.19072595]
[1673692554849,0.00840618,20367.0,20365.0,0.1986295]
[1673692555099,0.01640618,20367.0,20365.0,0.0986295]
[1673692555344,0.00840618,20367.0,20365.0,0.0986295]
[1673692555595,0.01040618,20367.0,20365.0,0.0986295]
[1673692556099,0.12165281,20366.0,20365.0,0.008]
[1673692556342,1.64848081,20366.0,20360.0,0.24870155]
[1673692556585,0.12165281,20365.0,20360.0,0.3703858]
[1673692556829,0.61272381,20364.0,20360.0,0.3703858]
[1673692557086,0.12165281,20364.0,20361.0,0.1]
[1673692557373,0.13082885,20365.0,20361.0,0.8990775]
[1673692557628,0.22591789,20366.0,20365.0,0.007]
[1673692557884,0.12191789,20366.0,20365.0,0.19072595]
[1673692558117,0.00840618,20367.0,20365.0,0.19072595]
[1673692558366,0.00840618,20367.0,20366.0,0.1]
[1673692559133,0.00840618,20367.0,20365.0,0.491029]
[1673692559393,0.01740618,20367.0,20366.0,0.079]
[1673692559892,0.01740618,20367.0,20366.0,0.19384309]
[1673692560149,0.00840618,20367.0,20366.0,0.11484309]
[1673692560396,0.01740618,20367.0,20366.0,0.87911569]
[1673692560890,0.01440618,20367.0,20366.0,3.19911569]
[1673692561133,0.01440618,20367.0,20366.0,2.89911569]
[1673692561382,0.01440618,20367.0,20366.0,5.69012969]
[1673692561633,0.00340618,20367.0,20366.0,5.29112969]
[1673692561896,0.00340618,20367.0,20366.0,5.59112969]
[1673692563397,0.01240618,20367.0,20366.0,5.67012969]
[1673692563646,0.01233958,20367.0,20366.0,5.67012969]
[1673692563931,0.00333958,20367.0,20366.0,5.59112969]
[1673692564175,0.00333958,20367.0,20366.0,4.892928]
[1673692564491,0.00333958,20367.0,20366.0,0.99935761]
[1673692564492,0.01066028,20367.0,20366.0,0.99935761]
[1673692564732,0.01066028,20367.0,20366.0,0.18542961]
[1673692564952,0.00166028,20367.0,20366.0,0.10642961]
[1673692565944,0.01066028,20367.0,20366.0,0.18542961]
[1673692566180,0.00166028,20367.0,20366.0,0.10642961]
[1673692566416,0.01066028,20367.0,20366.0,0.18542961]
[1673692566674,0.24106153,20367.0,20366.0,0.079]
[1673692566930,0.11940872,20367.0,20366.0,0.079]
[1673692567171,0.50165028,20367.0,20366.0,0.079]
[1673692567416,0.63008094,20367.0,20366.0,0.079]
[1673692567663,0.50165028,20367.0,20366.0,0.079]
[1673692567916,0.61563366,20367.0,20366.0,0.079]
[1673692568925,0.01066028,20367.0,20366.0,0.31931044]
[1673692569176,0.36986909,20376.0,20367.0,0.1]
[1673692569461,0.63001947,20376.0,20368.0,0.88855364]
[1673692569712,0.71873645,20376.0,20369.0,0.29072595]
[1673692569957,0.00834374,20376.0,20371.0,0.1]
[1673692570218,0.00834374,20376.0,20372.0,0.19072595]
[1673692570219,0.00840374,20376.0,20372.0,0.19072595]
[1673692570463,0.00840374,20376.0,20373.0,0.19072595]
[1673692570709,0.01840374,20376.0,20373.0,0.19072595]
[1673692570967,0.00840374,20376.0,20373.0,0.19072595]
[1673692571214,0.00840374,20376.0,20374.0,0.19072595]
[1673692571712,0.00840374,20376.0,20373.0,0.981685]
[1673692571966,0.01840374,20376.0,20374.0,0.1]
[1673692572215,0.00834374,20376.0,20374.0,0.59082]
[1673692572464,0.01834374,20376.0,20374.0,0.49182]
[1673692572713,0.01834374,20376.0,20373.0,0.490841]
[1673692572714,0.00834374,20376.0,20373.0,0.490841]
[1673692572956,0.00834374,20376.0,20375.0,0.10112735]
[1673692574215,0.00834374,20376.0,20375.0,1.48163864]
[1673692574460,0.00834374,20376.0,20375.0,1.59091269]
[1673692574461,0.00334374,20376.0,20375.0,1.59091269]
[1673692574711,0.00334374,20376.0,20375.0,4.59191269]
[1673692575461,0.00334374,20376.0,20375.0,4.29191269]
[1673692575708,7e-05,20379.0,20376.0,0.1]
[1673692575955,7e-05,20379.0,20377.0,0.69756069]
[1673692576201,0.00828951,20381.0,20379.0,0.1]
[1673692576454,0.00828951,20381.0,20380.0,0.220324]
[1673692576701,0.00828951,20381.0,20379.0,0.78142195]
[1673692576968,0.00828951,20381.0,20379.0,0.590696]
[1673692577491,0.00828951,20381.0,20380.0,0.99084164]
[1673692577744,0.00828951,20381.0,20380.0,1.59079269]
[1673692577745,0.00047191,20381.0,20380.0,1.59079269]
[1673692578011,0.00047191,20381.0,20380.0,1.69079269]
[1673692578275,0.00827714,20382.0,20381.0,0.05956232]
[1673692578529,0.00827714,20382.0,20381.0,0.75698801]
[1673692579021,0.00827714,20382.0,20381.0,0.85698801]
[1673692579273,0.00827714,20382.0,20381.0,1.37978632]
[1673692579527,0.00827714,20382.0,20381.0,1.85698801]
[1673692579784,0.00827714,20382.0,20381.0,2.15698801]
[1673692580566,1.2e-05,20383.0,20382.0,0.07502037]
[1673692580852,1.2e-05,20383.0,20382.0,2.74227449]
[1673692581081,0.00928486,20388.0,20382.0,2.74227449]
[1673692581082,0.00928486,20388.0,20382.0,2.74698406]
[1673692581330,1.002e-05,20389.0,20386.0,0.47720169]
[1673692581582,0.635061,20398.0,20386.0,0.47720169]
[1673692581583,0.0001,20400.0,20388.0,0.47720169]
[1673692581837,0.0001,20400.0,20393.0,0.47720169]
[1673692581838,0.12505533,20398.0,20393.0,0.47720169]
[1673692582125,0.12505533,20398.0,20389.0,2.20443395]
[1673692582126,0.00219423,20397.0,20394.0,0.61339095]
[1673692582426,0.00219423,20397.0,20395.0,0.19072595]
[1673692582916,0.00219423,20397.0,20392.0,0.49038]
[1673692582917,0.10789304,20396.0,20393.0,0.1]
[1673692583161,0.00219423,20397.0,20393.0,0.1]
[1673692583416,0.00219423,20397.0,20393.0,0.29072595]
[1673692583655,0.00219423,20397.0,20394.0,0.47720169]
[1673692583913,0.00219423,20397.0,20395.0,0.1]
[1673692584168,0.00219423,20397.0,20395.0,0.76792764]
[1673692584413,0.00219423,20397.0,20396.0,0.80011569]
[1673692584414,0.00213423,20397.0,20396.0,0.80011569]
[1673692584658,4.23e-06,20397.0,20396.0,0.80011569]
[1673692584903,4.23e-06,20397.0,20396.0,3.80011569]
[1673692585157,4.23e-06,20400.0,20396.0,4.78113364]
[1673692585420,4.23e-06,20400.0,20397.0,0.88767864]
[1673692585666,0.1448,20397.0,20387.0,0.717177]
[1673692585916,0.1448,20397.0,20382.0,0.12472793]
[1673692585917,0.47720169,20394.0,20382.0,0.12472793]
[1673692586174,0.47720169,20394.0,20382.0,0.01665037]
[1673692586175,0.6,20388.0,20382.0,0.01665037]
[1673692586437,0.1448,20384.0,20382.0,0.14824825]
[1673692586699,0.12165281,20383.0,20382.0,0.01665037]
[1673692586971,0.490498,20388.0,20382.0,0.01665037]
[1673692586972,0.490498,20388.0,20382.0,0.02865037]
[1673692587247,0.60715081,20388.0,20382.0,0.20737632]
[1673692587525,0.60715081,20388.0,20383.0,0.21158281]
[1673692587526,0.219785,20387.0,20383.0,0.21158281]
[1673692587771,0.1448,20389.0,20383.0,0.21158281]
[1673692588004,0.490426,20391.0,20384.0,0.19072595]
[1673692588249,0.76220017,20396.0,20383.0,0.49805855]
[1673692588250,0.61199327,20396.0,20385.0,0.66792764]
[1673692588505,0.61199327,20396.0,20386.0,0.7347204]
[1673692588506,0.11375836,20394.0,20386.0,0.7347204]
[1673692588764,0.62270408,20396.0,20387.0,0.96792764]
[1673692589005,0.62270408,20396.0,20388.0,0.76792764]
[1673692589006,0.74435689,20396.0,20388.0,0.76792764]
[1673692589252,0.74435689,20396.0,20389.0,0.29751871]
[1673692589498,0.12831757,20395.0,20390.0,0.19072595]
[1673692589758,0.12831757,20395.0,20391.0,0.19072595]
[1673692590008,0.219785,20394.0,20391.0,0.19072595]
[1673692590255,0.11326885,20394.0,20392.0,0.0190726]
[1673692590753,0.11326885,20394.0,20377.0,15.490727]
[1673692590754,0.1,20392.0,20386.0,0.09492277]
[1673692590997,0.34143781,20393.0,20391.0,0.072]
[1673692590998,0.46994154,20393.0,20391.0,0.072]
[1673692591246,1.445361,20392.0,20389.0,0.00019]
[1673692591490,1.20242881,20392.0,20389.0,0.00019]
[1673692591740,0.519785,20391.0,20389.0,0.00019]
[1673692591990,0.9,20391.0,20389.0,0.00019]
[1673692592236,0.3,20391.0,20389.0,0.00019]
[1673692592742,0.9,20391.0,20389.0,0.00019]
[1673692592999,6e-05,20388.0,20382.0,0.01665037]
[1673692593244,0.1448,20385.0,20382.0,0.01665037]
[1673692593489,1.10281281,20384.0,20382.0,0.01665037]
[1673692593987,0.56645281,20383.0,20382.0,0.01665037]
[1673692594245,0.27438735,20383.0,20382.0,0.01665037]
[1673692594489,1.798727,20387.0,20382.0,0.01665037]
[1673692594746,0.60907803,20385.0,20383.0,0.45213143]
[1673692594994,0.60907803,20385.0,20383.0,0.13496472]
[1673692595244,0.027,20384.0,20383.0,0.13496472]
[1673692595491,0.027,20384.0,20383.0,0.23332345]
[1673692595777,0.027,20384.0,20383.0,0.13496472]
[1673692596035,0.56575281,20384.0,20383.0,0.13496472]
[1673692596286,0.56575281,20384.0,20383.0,0.14596472]
[1673692596287,0.4441,20384.0,20383.0,0.14596472]
[1673692596531,1.04290164,20384.0,20383.0,0.13496472]
[1673692596783,1.06890164,20384.0,20383.0,0.14596472]
[1673692597035,1.06890164,20384.0,20383.0,0.13496472]
[1673692597278,0.76890164,20384.0,20383.0,0.13496472]
[1673692597530,1.06890164,20384.0,20383.0,0.13496472]
[1673692597776,1.09490164,20384.0,20383.0,0.14696472]
[1673692598040,1.06890164,20384.0,20383.0,0.14696472]
[1673692598272,1.09490164,20384.0,20383.0,0.15796472]
[1673692598531,0.490554,20386.0,20383.0,0.32569067]
[1673692598792,0.490564,20388.0,20384.0,0.28599135]
[1673692598793,0.490519,20387.0,20384.0,0.28599135]
[1673692599023,0.490557,20388.0,20385.0,0.19072595]
[1673692599276,0.58800952,20388.0,20385.0,0.19072595]
[1673692599780,0.58800952,20388.0,20386.0,0.1]
[1673692599781,0.002,20387.0,20386.0,0.1]
[1673692600774,6e-05,20388.0,20386.0,0.1]
[1673692601269,6e-05,20388.0,20387.0,0.13393028]
[1673692601514,6e-05,20388.0,20386.0,0.1]
[1673692601515,1.10268581,20388.0,20386.0,0.102]
[1673692601784,1.10268581,20388.0,20386.0,0.002]
[1673692601785,1.37223439,20388.0,20386.0,0.002]
[1673692602039,1.37223439,20388.0,20383.0,0.13496472]
[1673692602294,1.37223439,20388.0,20383.0,0.13515472]
[1673692602295,0.1448,20386.0,20383.0,0.13515472]
[1673692602532,0.1448,20384.0,20383.0,0.13515472]
[1673692602781,0.5448,20384.0,20383.0,0.13515472]
[1673692603034,0.4398,20384.0,20383.0,0.13515472]
[1673692603283,1.03038,20384.0,20383.0,0.13515472]
[1673692603531,0.93038,20384.0,20383.0,0.13515472]
[1673692604050,1.06193389,20384.0,20383.0,0.13515472]
[1673692604293,1.03603703,20384.0,20383.0,0.13496472]
[1673692604580,1.06203703,20384.0,20383.0,0.14596472]
[1673692604893,0.026,20384.0,20383.0,0.28771567]
[1673692606145,0.026,20384.0,20383.0,0.16124546]
[1673692606389,0.026,20384.0,20383.0,0.15024546]
[1673692606636,0.001,20384.0,20383.0,0.22124546]
[1673692606880,0.49054,20386.0,20383.0,0.15024546]
[1673692607131,0.49054,20386.0,20384.0,0.12668958]
[1673692607899,0.490523,20387.0,20384.0,0.12668958]
[1673692608138,0.490523,20387.0,20384.0,0.001]
[1673692608391,0.490523,20387.0,20384.0,0.0007336]
[1673692608891,0.490558,20388.0,20384.0,0.0007336]
[1673692609137,0.490558,20388.0,20384.0,0.26568855]
[1673692609417,0.490558,20388.0,20385.0,0.12178323]
[1673692609661,0.026,20387.0,20385.0,0.22178323]
[1673692609917,0.981064,20386.0,20385.0,0.1]
[1673692610164,0.981064,20386.0,20384.0,0.001]
[1673692610454,0.981064,20386.0,20385.0,0.11091754]
[1673692610703,0.490532,20386.0,20385.0,0.12091754]
[1673692610949,0.490532,20386.0,20385.0,0.11091754]
[1673692611244,0.031,20386.0,20385.0,0.11091754]
[1673692611475,0.490546,20388.0,20385.0,0.14660577]
[1673692611712,0.981033,20388.0,20386.0,0.12696919]
[1673692612472,1.09220169,20388.0,20384.0,0.1]
[1673692612725,0.42165281,20387.0,20385.0,0.075]
[1673692612967,0.12165281,20386.0,20383.0,0.13496472]
[1673692613218,0.12165281,20385.0,20383.0,0.13496472]
[1673692613485,1.57174,20384.0,20383.0,0.13496472]
[1673692613728,1.87174,20384.0,20383.0,0.13496472]
[1673692614482,1.99416065,20384.0,20383.0,0.13496472]
[1673692614735,1.59416065,20384.0,20383.0,0.13496472]
[1673692614985,1.016068,20386.0,20383.0,0.13496472]
[1673692615229,0.64446744,20386.0,20383.0,0.46930563]
[1673692615470,0.60946744,20386.0,20383.0,0.26757968]
[1673692615724,0.60946744,20386.0,20383.0,0.27857968]
[1673692615725,0.035,20384.0,20383.0,0.27857968]
[1673692615971,0.035,20384.0,20383.0,0.12996472]
[1673692616231,0.035,20384.0,20383.0,0.14096472]
[1673692616473,0.525532,20386.0,20383.0,0.26075526]
[1673692616716,0.525532,20386.0,20384.0,0.11860507]
[1673692616717,0.65747347,20386.0,20384.0,0.11860507]
[1673692617219,0.16694147,20386.0,20384.0,0.11860507]
[1673692617467,0.16694147,20386.0,20385.0,0.12743505]
[1673692617468,0.035,20386.0,20385.0,0.12743505]
[1673692618234,0.60844042,20388.0,20385.0,0.12743505]
[1673692618480,0.029,20386.0,20385.0,0.318161]
[1673692618725,0.029,20386.0,20385.0,0.12743505]
[1673692618978,0.029,20386.0,20385.0,0.13843505]
[1673692619232,0.11795642,20388.0,20385.0,0.12743505]
[1673692619471,0.11795642,20388.0,20386.0,0.14181575]
[1673692619720,0.11795642,20388.0,20386.0,0.10721174]
[1673692620242,6e-05,20388.0,20387.0,0.19072595]
[1673692620522,0.01001471,20391.0,20387.0,0.322548]
[1673692620760,0.01001471,20391.0,20388.0,0.41112295]
[1673692621007,0.01001471,20391.0,20389.0,0.322512]
[1673692621264,1.471e-05,20391.0,20390.0,0.2716978]
[1673692621513,0.00983466,20393.0,20391.0,0.1]
[1673692621773,0.00983466,20393.0,20391.0,0.29072595]
[1673692622080,0.01001471,20398.0,20392.0,0.61327395]
[1673692622326,0.01001471,20398.0,20393.0,1.16941901]
[1673692622596,0.01001471,20398.0,20394.0,0.51323495]
[1673692622832,0.01001471,20398.0,20395.0,0.41095195]
[1673692623131,0.01001471,20398.0,20396.0,0.322476]
[1673692623376,0.00994811,20398.0,20397.0,0.205375]
[1673692623630,0.00994811,20398.0,20397.0,0.24498509]
[1673692623882,4.23e-06,20400.0,20398.0,0.00994]
[1673692624159,0.01001471,20402.0,20399.0,0.51315295]
[1673692624160,1.894e-05,20402.0,20399.0,0.51315295]
[1673692624387,1.894e-05,20402.0,20400.0,0.305339]
[1673692624651,1.894e-05,20402.0,20401.0,0.322391]
[1673692624896,1.894e-05,20402.0,20401.0,0.58044436]
[1673692625644,1.894e-05,20402.0,20400.0,1.2724]
[1673692625891,0.02601894,20402.0,20401.0,0.01]
[1673692626158,0.14767175,20402.0,20401.0,0.01]
[1673692626397,0.02601894,20402.0,20401.0,0.01]
[1673692626649,0.02601894,20402.0,20394.0,0.27236332]
[1673692626650,0.01485394,20402.0,20394.0,0.27236332]
[1673692626895,0.01485394,20402.0,20400.0,0.003]
[1673692626896,1.10201981,20401.0,20400.0,0.003]
[1673692627146,0.980367,20401.0,20397.0,0.00019]
[1673692627391,0.980367,20401.0,20398.0,0.66792764]
[1673692627654,0.02601894,20402.0,20399.0,2.0376904]
[1673692627906,0.01072732,20405.0,20402.0,0.1]
[1673692628163,0.62748375,20412.0,20403.0,0.99037164]
[1673692628418,0.1438,20420.0,20405.0,1.470187]
[1673692628419,0.14453678,20417.0,20405.0,1.470187]
[1673692628707,0.48984,20415.0,20406.0,1.21931554]
[1673692628951,0.10503919,20414.0,20407.0,1.15794964]
[1673692629223,0.716555,20414.0,20408.0,0.19072595]
[1673692629453,0.979722,20414.0,20409.0,0.19072595]
[1673692629707,0.014835,20413.0,20410.0,0.0190726]
[1673692629953,0.014835,20413.0,20408.0,0.11535024]
[1673692629954,0.00560285,20409.0,20397.0,1.1105]
[1673692630207,0.20556095,20408.0,20407.0,0.14]
[1673692630458,0.014835,20408.0,20406.0,0.10192666]
[1673692630708,0.490003,20408.0,20406.0,0.01019267]
[1673692630953,0.014835,20407.0,20406.0,0.01019267]
[1673692631197,0.014835,20407.0,20402.0,0.1]
[1673692631198,0.49558785,20409.0,20407.0,0.12073971]
[1673692631440,0.00560285,20409.0,20407.0,0.07079135]
[1673692631684,0.00560285,20409.0,20406.0,0.007]
[1673692632176,0.00560285,20409.0,20407.0,0.322511]
[1673692632427,2.85e-06,20409.0,20408.0,0.38569527]
[1673692632927,0.01072732,20414.0,20408.0,0.86289696]
[1673692633198,0.01072732,20414.0,20409.0,0.39326835]
[1673692633440,0.01072732,20414.0,20410.0,0.37578735]
[1673692633699,0.01072732,20414.0,20411.0,0.43081409]
[1673692633951,0.01072732,20414.0,20412.0,0.204974]
[1673692634196,0.01072732,20414.0,20409.0,0.14]
[1673692634197,0.10331557,20411.0,20409.0,0.14]
[1673692634448,0.19072595,20411.0,20409.0,0.00019]
[1673692634706,0.11902082,20410.0,20409.0,0.12980834]
[1673692634994,0.69551595,20410.0,20409.0,0.00019]
[1673692635309,1.14420926,20410.0,20409.0,0.00019]
[1673692635486,0.95348331,20410.0,20409.0,0.00019]
[1673692635736,0.85348331,20410.0,20409.0,0.02019]
[1673692635976,0.50479,20410.0,20409.0,0.00019]
[1673692636223,0.50479,20410.0,20409.0,0.05837]
[1673692636224,0.014835,20410.0,20409.0,0.05837]
[1673692636721,0.014835,20410.0,20404.0,0.47057928]
[1673692636980,0.009,20410.0,20409.0,0.012]
[1673692637226,1.088929,20410.0,20409.0,0.012]
[1673692637472,1.103764,20410.0,20409.0,0.012]
[1673692637718,1.37333182,20410.0,20409.0,0.012]
[1673692637975,1.46605442,20410.0,20405.0,0.12046416]
[1673692638228,1.62937123,20410.0,20406.0,0.12118219]
[1673692638483,0.014835,20409.0,20408.0,0.11338845]
[1673692638749,0.014835,20409.0,20407.0,0.01971635]
[1673692639009,0.489974,20410.0,20408.0,0.12574824]
[1673692639493,0.498974,20410.0,20408.0,0.12574824]
[1673692639746,0.498974,20410.0,20409.0,0.10012564]
[1673692639989,0.489955,20411.0,20409.0,0.10012564]
[1673692640745,0.014835,20410.0,20409.0,0.10012564]
[1673692641241,0.489892,20413.0,20406.0,0.590035]
[1673692641483,0.009,20411.0,20407.0,0.55299303]
[1673692641726,0.19072595,20413.0,20408.0,0.79661317]
[1673692641981,0.009,20410.0,20409.0,0.07579134]
[1673692642229,0.009,20410.0,20408.0,0.47410217]
[1673692642230,0.09905339,20411.0,20408.0,2.0]